fUSD/lending_fUSD_20250111
["ID","MTS","AMOUNT","RATE_DAILY","PERIOD"]
[348532899,1736607049656,-500.0,0.00010167,2]
[348532900,1736607049665,-766.78,0.00010168,2]
[348532901,1736607049674,-631.2,0.00010168,2]
[348532902,1736607049683,-561.23,0.00010168,2]
[348532903,1736607049693,-500.25,0.00010168,2]
[348532904,1736607049885,-500.0,0.00010168,2]
[348532905,1736607049894,-1276.19,0.00010168,2]
[348532906,1736607049904,-600.84,0.00010273,2]
[348532907,1736607049914,-500.0,0.00010273,2]
[348532908,1736607049924,-811.94,0.00010273,2]
[348532909,1736607049933,-500.0,0.00010273,2]
[348532910,1736607049943,-500.0,0.00010273,2]
[348532911,1736607049954,-574.92,0.00010273,2]
[348532912,1736607049963,-1376.4,0.00010273,2]
[348532913,1736607049973,-724.24,0.00010273,2]
[348532914,1736607049983,-530.24,0.00010273,2]
[348532915,1736607049993,-675.649854,0.00010273,2]
[348532916,1736607050002,-184.931049,0.00010273,2]
[348532917,1736607050012,-657.362686,0.00010273,2]
[348532918,1736607050022,-1771.06,0.00010273,2]
[348532919,1736607050032,-500.0,0.00010273,2]
[348532920,1736607050042,-500.0,0.00010273,2]
[348532921,1736607050052,-500.0,0.00010273,2]
[348532922,1736607050061,-500.0,0.00010273,2]
[348532923,1736607050071,-500.0,0.00010273,2]
[348532924,1736607050080,-2941.63,0.00010273,2]
[348532925,1736607050089,-799.38,0.00010273,2]
[348532926,1736607050099,-732.34,0.00010273,2]
[348532927,1736607050109,-500.0,0.00010273,2]
[348532928,1736607050119,-500.0,0.00010273,2]
[348532929,1736607050128,-500.0,0.00010273,2]
[348532930,1736607050138,-159.754646,0.00010273,2]
[348532931,1736607050148,-164.96734,0.00010273,2]
[348532932,1736607050158,-862.78,0.00010273,2]
[348532933,1736607050168,-964.57,0.00010273,2]
[348532934,1736607050178,-1087.4,0.00010273,2]
[348532935,1736607050188,-807.84,0.00010273,2]
[348532936,1736607050197,-1716.58,0.00010273,2]
[348532937,1736607050207,-961.27,0.00010273,2]
[348532938,1736607050217,-750.47,0.00010273,2]
[348532939,1736607050227,-1628.62,0.00010273,2]
[348532940,1736607050237,-849.75,0.00010273,2]
[348532941,1736607050247,-1834.98,0.00010273,2]
[348532942,1736607050256,-921.6,0.00010273,2]
[348532943,1736607050266,-500.0,0.00010273,2]
[348532944,1736607050276,-202.71905113,0.00010277,2]
[348532945,1736607050285,-429.82131162,0.00010359,2]
[348532946,1736607050296,-732.43,0.0001036,2]
[348532947,1736607050305,-1000.0,0.00010421,2]
[348532948,1736607050315,-615.07,0.00010423,2]
[348532949,1736607050324,-827.11,0.00010433,2]
[348532950,1736607050334,-716.41,0.00010433,2]
[348532951,1736607050344,-500.0,0.00010434,2]
[348532952,1736607050353,-500.0,0.00010434,2]
[348532953,1736607050363,-500.0,0.00010434,2]
[348532954,1736607050373,-500.0,0.00010434,2]
[348532955,1736607050383,-500.0,0.00010434,2]
[348532956,1736607050393,-500.0,0.00010434,2]
[348532957,1736607050402,-500.0,0.00010434,2]
[348532958,1736607050412,-500.0,0.00010434,2]
[348532959,1736607050422,-500.0,0.00010434,2]
[348532960,1736607050431,-630.74253525,0.00010434,2]
[348532961,1736607050441,-500.0,0.00010434,2]
[348532962,1736607050451,-500.0,0.00010434,2]
[348532963,1736607050462,-429.94541652,0.00010434,2]
[348532964,1736607050473,-505.19170021,0.00010434,2]
[348532965,1736607050483,-261.79830738,0.00010434,2]
[348532966,1736607050492,-420.75,0.00010434,2]
[348532967,1736607050502,-869.41,0.00010434,2]
[348532968,1736607050511,-500.0,0.00010434,2]
[348532969,1736607050521,-500.0,0.00010434,2]
[348532970,1736607050530,-809.1,0.00010434,2]
[348532971,1736607050540,-500.0,0.00010434,2]
[348532972,1736607050550,-500.0,0.00010434,2]
[348532973,1736607050560,-859.62,0.00010434,2]
[348532974,1736607050570,-307.6,0.00010434,2]
[348532975,1736607050579,-3146.6,0.00010434,2]
[348532976,1736607050589,-578.89,0.00010434,2]
[348532977,1736607050599,-500.0,0.00010434,2]
[348532978,1736607050609,-500.0,0.00010434,2]
[348532979,1736607050618,-500.0,0.00010434,2]
[348532980,1736607050628,-500.0,0.00010434,2]
[348532981,1736607050637,-500.0,0.00010434,2]
[348532982,1736607050647,-500.0,0.00010434,2]
[348532983,1736607050656,-669.59,0.00010434,2]
[348532984,1736607050666,-500.0,0.00010434,2]
[348532985,1736607050675,-528.16,0.00010434,2]
[348532986,1736607050685,-829.32,0.00010434,2]
[348532987,1736607050695,-1240.9,0.00010434,2]
[348532988,1736607050705,-500.0,0.00010434,2]
[348532989,1736607050714,-179.55916,0.00010434,2]
[348532990,1736607050725,-500.0,0.00010434,2]
[348532991,1736607050735,-500.0,0.00010434,2]
[348532992,1736607050744,-2391.89,0.00010434,2]
[348532993,1736607050754,-1044.49,0.00010434,2]
[348532994,1736607050764,-273.43041632,0.00010434,2]
[348532995,1736607050774,-897.59,0.00010434,2]
[348532996,1736607050783,-539.29441096,0.00010434,2]
[348532997,1736607050792,-500.0,0.00010434,2]
[348532998,1736607050802,-1241.46,0.00010434,2]
[348532999,1736607050811,-500.0,0.00010434,2]
[348533000,1736607050820,-500.0,0.00010434,2]
[348533001,1736607050829,-985.45,0.00010434,2]
[348533002,1736607050839,-911.64,0.00010434,2]
[348533003,1736607050849,-500.0,0.00010434,2]
[348533004,1736607050859,-693.52,0.00010434,2]
[348533005,1736607050873,-617.69,0.00010434,2]
[348533006,1736607050884,-1161.83,0.00010434,2]
[348533007,1736607050893,-500.0,0.00010435,2]
[348533008,1736607050903,-500.0,0.00010435,2]
[348533009,1736607050912,-682.51,0.00010435,2]
[348533010,1736607050922,-500.0,0.00010435,2]
[348533011,1736607050932,-500.0,0.00010435,2]
[348533012,1736607050942,-500.0,0.00010435,2]
[348533013,1736607050951,-500.0,0.00010435,2]
[348533014,1736607050961,-500.0,0.00010435,2]
[348533015,1736607050971,-500.0,0.00010435,2]
[348533016,1736607050981,-500.0,0.00010435,2]
[348533017,1736607050990,-500.0,0.00010435,2]
[348533018,1736607050999,-500.0,0.00010435,2]
[348533019,1736607051009,-500.79,0.00010435,2]
[348533020,1736607051018,-501.6362586,0.00010435,2]
[348533021,1736607051029,-533.09,0.00010435,2]
[348533022,1736607051039,-500.0,0.00010435,2]
[348533023,1736607051048,-500.0,0.00010435,2]
[348533024,1736607051057,-500.0,0.00010435,2]
[348533025,1736607051067,-500.0,0.00010435,2]
[348533026,1736607051076,-1125.39,0.00010435,2]
[348533027,1736607051086,-500.0,0.00010435,2]
[348533028,1736607051095,-500.0,0.00010435,2]
[348533029,1736607051104,-500.0,0.00010435,2]
[348533030,1736607051114,-500.0,0.00010435,2]
[348533031,1736607051123,-500.0,0.00010435,2]
[348533032,1736607051132,-500.0,0.00010435,2]
[348533033,1736607051142,-500.0,0.00010435,2]
[348533034,1736607051151,-500.0,0.00010435,2]
[348533035,1736607051161,-625.96,0.00010435,2]
[348533036,1736607051173,-500.0,0.00010435,2]
[348533037,1736607051183,-501.59157746,0.00010435,2]
[348533038,1736607051193,-500.0,0.00010435,2]
[348533039,1736607051202,-500.0,0.00010435,2]
[348533040,1736607051212,-500.0,0.00010435,2]
[348533041,1736607051223,-500.0,0.00010435,2]
[348533042,1736607051234,-500.0,0.00010435,2]
[348533043,1736607051244,-500.0,0.00010435,2]
[348533044,1736607051253,-500.0,0.00010435,2]
[348533045,1736607051264,-500.0,0.00010435,2]
[348533046,1736607051274,-500.0,0.00010435,2]
[348533047,1736607051285,-500.0,0.00010435,2]
[348533048,1736607051295,-1874.0,0.00010435,2]
[348533049,1736607051305,-500.0,0.00010435,2]
[348533050,1736607051315,-500.0,0.00010435,2]
[348533051,1736607051325,-500.0,0.00010435,2]
[348533052,1736607051335,-500.0,0.00010435,2]
[348533053,1736607051345,-974.64,0.00010435,2]
[348533054,1736607051354,-500.0,0.00010435,2]
[348533055,1736607051363,-500.0,0.00010435,2]
[348533056,1736607051374,-500.0,0.00010435,2]
[348533057,1736607051384,-500.0,0.00010435,2]
[348533058,1736607051394,-1518.19,0.00010435,2]
[348533059,1736607051406,-500.0,0.00010435,2]
[348533060,1736607051416,-500.0,0.00010435,2]
[348533061,1736607051426,-500.0,0.00010435,2]
[348533062,1736607051436,-500.0,0.00010435,2]
[348533063,1736607051445,-718.75,0.00010435,2]
[348533064,1736607051455,-500.0,0.00010435,2]
[348533065,1736607051466,-500.0,0.00010435,2]
[348533066,1736607051479,-500.0,0.00010435,2]
[348533067,1736607051491,-500.0,0.00010435,2]
[348533068,1736607051501,-500.0,0.00010435,2]
[348533069,1736607051511,-766.56,0.00010435,2]
[348533070,1736607051522,-406.37123333,0.00010435,2]
[348533071,1736607051532,-500.0,0.00010435,2]
[348533072,1736607051542,-500.0,0.00010435,2]
[348533073,1736607051552,-831.78,0.00010435,2]
[348533074,1736607051562,-500.0,0.00010435,2]
[348533075,1736607051572,-686.37,0.00010435,2]
[348533076,1736607051582,-500.0,0.00010435,2]
[348533077,1736607051593,-500.0,0.00010435,2]
[348533078,1736607051603,-500.0,0.00010435,2]
[348533079,1736607051612,-500.0,0.00010435,2]
[348533080,1736607051622,-2192.32,0.00010435,2]
[348533081,1736607051632,-500.0,0.00010435,2]
[348533082,1736607051641,-609.9,0.00010435,2]
[348533083,1736607051651,-500.0,0.00010435,2]
[348533084,1736607051660,-404.48,0.00010435,2]
[348533085,1736607051670,-500.0,0.00010435,2]
[348533086,1736607051680,-500.0,0.00010435,2]
[348533087,1736607051689,-1575.89,0.00010435,2]
[348533088,1736607051699,-500.0,0.00010435,2]
[348533089,1736607051709,-500.0,0.00010435,2]
[348533090,1736607051720,-500.0,0.00010435,2]
[348533091,1736607051732,-531.78,0.00010435,2]
[348533092,1736607051742,-500.0,0.00010435,2]
[348533093,1736607051751,-500.0,0.00010435,2]
[348533094,1736607051760,-174.38,0.00010435,2]
[348533095,1736607051769,-500.0,0.00010435,2]
[348533096,1736607051779,-545.54,0.00010435,2]
[348533097,1736607051788,-2218.59,0.00010435,2]
[348533098,1736607051798,-540.79,0.00010435,2]
[348533099,1736607051807,-547.53,0.00010435,2]
[348533100,1736607051816,-613.46,0.00010435,2]
[348533101,1736607051827,-500.0,0.00010435,2]
[348533102,1736607051836,-500.0,0.00010435,2]
[348533103,1736607051845,-500.0,0.00010435,2]
[348533104,1736607051855,-687.13,0.00010435,2]
[348533105,1736607051865,-683.83,0.00010436,2]
[348533106,1736607051877,-718.87,0.00010436,2]
[348533107,1736607051888,-1308.53,0.00010436,2]
[348533108,1736607051897,-622.72,0.00010436,2]
[348533109,1736607051907,-5365.55,0.00010436,2]
[348533110,1736607051918,-500.0,0.00010436,2]
[348533111,1736607051928,-830.23,0.00010436,2]
[348533112,1736607051938,-500.0,0.00010436,2]
[348533113,1736607051947,-1018.36,0.00010436,2]
[348533114,1736607051957,-511.63,0.00010436,2]
[348533115,1736607051966,-162.96,0.00010436,2]
[348533116,1736607051979,-570.79,0.00010436,2]
[348533117,1736607051988,-500.0,0.00010436,2]
[348533118,1736607051997,-500.0,0.00010436,2]
[348533119,1736607052007,-775.71,0.00010436,2]
[348533120,1736607052016,-500.0,0.00010438,2]
[348533121,1736607052025,-500.0,0.00010441,2]
[348533122,1736607052034,-766.78,0.00010442,2]
[348533123,1736607052044,-631.2,0.00010442,2]
[348533124,1736607052053,-561.23,0.00010442,2]
[348533125,1736607052062,-500.25,0.00010442,2]
[348533126,1736607052072,-500.0,0.00010442,2]
[348533127,1736607052081,-1276.19,0.00010442,2]
[348533128,1736607052090,-152.722008,0.00010442,2]
[348533129,1736607052100,-1219.76964172,0.00010475,2]
[348533130,1736607052109,-202.71905113,0.00010515,2]
[348533131,1736607052118,-600.84,0.00010547,2]
[348533132,1736607052127,-500.0,0.00010547,2]
[348533133,1736607052136,-811.94,0.00010547,2]
[348533134,1736607052145,-500.0,0.00010547,2]
[348533135,1736607052156,-500.0,0.00010547,2]
[348533136,1736607052167,-574.92,0.00010547,2]
[348533137,1736607052177,-1376.4,0.00010547,2]
[348533138,1736607052186,-724.24,0.00010547,2]
[348533139,1736607052196,-530.24,0.00010547,2]
[348533140,1736607052206,-675.649854,0.00010547,2]
[348533141,1736607052215,-657.362686,0.00010547,2]
[348533142,1736607052226,-1771.06,0.00010547,2]
[348533143,1736607052236,-500.0,0.00010547,2]
[348533144,1736607052245,-500.0,0.00010547,2]
[348533145,1736607052254,-500.0,0.00010547,2]
[348533146,1736607052264,-500.0,0.00010547,2]
[348533147,1736607052274,-500.0,0.00010547,2]
[348533148,1736607052283,-2941.63,0.00010547,2]
[348533149,1736607052293,-799.38,0.00010547,2]
[348533150,1736607052302,-732.34,0.00010547,2]
[348533151,1736607052311,-500.0,0.00010547,2]
[348533152,1736607052321,-500.0,0.00010547,2]
[348533153,1736607052331,-862.78,0.00010547,2]
[348533154,1736607052340,-964.57,0.00010547,2]
[348533155,1736607052350,-1087.4,0.00010547,2]
[348533156,1736607052359,-807.84,0.00010547,2]
[348533157,1736607052368,-1716.58,0.00010547,2]
[348533158,1736607052377,-961.27,0.00010547,2]
[348533159,1736607052387,-750.47,0.00010547,2]
[348533160,1736607052396,-1628.62,0.00010547,2]
[348533161,1736607052405,-849.75,0.00010547,2]
[348533162,1736607052414,-1834.98,0.00010547,2]
[348533163,1736607052423,-921.6,0.00010547,2]
[348533164,1736607052432,-500.0,0.00010547,2]
[348533165,1736607052442,-429.82131162,0.00010582,2]
[348533166,1736607052451,-152.0,0.00010609,3]
[348533167,1736607052460,-827.11,0.00010707,2]
[348533168,1736607052470,-716.41,0.00010707,2]
[348533169,1736607052480,-500.0,0.00010708,2]
[348533170,1736607052490,-500.0,0.00010708,2]
[348533171,1736607052499,-500.0,0.00010708,2]
[348533172,1736607052508,-500.0,0.00010708,2]
[348533173,1736607052517,-500.0,0.00010708,2]
[348533174,1736607052527,-500.0,0.00010708,2]
[348533175,1736607052536,-500.0,0.00010708,2]
[348533176,1736607052546,-500.0,0.00010708,2]
[348533177,1736607052558,-869.41,0.00010708,2]
[348533178,1736607052567,-500.0,0.00010708,2]
[348533179,1736607052576,-500.0,0.00010708,2]
[348533180,1736607052585,-809.1,0.00010708,2]
[348533181,1736607052595,-500.0,0.00010708,2]
[348533182,1736607052604,-859.62,0.00010708,2]
[348533183,1736607052613,-3146.6,0.00010708,2]
[348533184,1736607052623,-500.0,0.00010708,2]
[348533185,1736607052632,-669.59,0.00010708,2]
[348533186,1736607052643,-829.32,0.00010708,2]
[348533187,1736607052652,-1240.9,0.00010708,2]
[348533188,1736607052662,-500.0,0.00010708,2]
[348533189,1736607052671,-584.69221306,0.00010708,2]
[348533190,1736607052680,-2391.89,0.00010708,2]
[348533191,1736607052690,-1044.49,0.00010708,2]
[348533192,1736607052699,-897.59,0.00010708,2]
[348533193,1736607052709,-500.0,0.00010708,2]
[348533194,1736607052721,-1241.46,0.00010708,2]
[348533195,1736607052731,-500.0,0.00010708,2]
[348533196,1736607052740,-985.45,0.00010708,2]
[348533197,1736607052750,-911.64,0.00010708,2]
[348533198,1736607052759,-500.0,0.00010708,2]
[348533199,1736607052769,-693.52,0.00010708,2]
[348533200,1736607052778,-1161.83,0.00010708,2]
[348533201,1736607052787,-617.69,0.00010708,2]
[348533202,1736607052797,-530.92500671,0.00010709,2]
[348533203,1736607052807,-682.51,0.00010709,2]
[348533204,1736607052816,-500.0,0.00010709,2]
[348533205,1736607052826,-500.0,0.00010709,2]
[348533206,1736607052836,-500.0,0.00010709,2]
[348533207,1736607052846,-500.79,0.00010709,2]
[348533208,1736607052855,-533.09,0.00010709,2]
[348533209,1736607052866,-500.0,0.00010709,2]
[348533210,1736607052876,-500.0,0.00010709,2]
[348533211,1736607052887,-500.0,0.00010709,2]
[348533212,1736607052897,-500.0,0.00010709,2]
[348533213,1736607052906,-1125.39,0.00010709,2]
[348533214,1736607052915,-500.0,0.00010709,2]
[348533215,1736607052925,-500.0,0.00010709,2]
[348533216,1736607052934,-500.0,0.00010709,2]
[348533217,1736607052944,-500.0,0.00010709,2]
[348533218,1736607052954,-500.0,0.00010709,2]
[348533219,1736607052964,-500.0,0.00010709,2]
[348533220,1736607052977,-625.96,0.00010709,2]
[348533221,1736607052986,-398.47867806,0.00010709,2]
[348533222,1736607052996,-500.0,0.00010709,2]
[348533223,1736607053006,-500.0,0.00010709,2]
[348533224,1736607053016,-500.0,0.00010709,2]
[348533225,1736607053026,-500.0,0.00010709,2]
[348533226,1736607053036,-500.0,0.00010709,2]
[348533227,1736607053045,-500.0,0.00010709,2]
[348533228,1736607053054,-500.0,0.00010709,2]
[348533229,1736607053064,-1874.0,0.00010709,2]
[348533230,1736607053074,-500.0,0.00010709,2]
[348533231,1736607053083,-500.0,0.00010709,2]
[348533232,1736607053092,-500.0,0.00010709,2]
[348533233,1736607053101,-974.64,0.00010709,2]
[348533234,1736607053111,-500.0,0.00010709,2]
[348533235,1736607053121,-500.0,0.00010709,2]
[348533236,1736607053131,-500.0,0.00010709,2]
[348533237,1736607053142,-500.0,0.00010709,2]
[348533238,1736607053151,-1518.19,0.00010709,2]
[348533239,1736607053161,-632.81798196,0.00010709,2]
[348533240,1736607053172,-500.0,0.00010709,2]
[348533241,1736607053182,-500.0,0.00010709,2]
[348533242,1736607053191,-718.75,0.00010709,2]
[348533243,1736607053201,-500.0,0.00010709,2]
[348533244,1736607053211,-766.56,0.00010709,2]
[348533245,1736607053222,-831.78,0.00010709,2]
[348533246,1736607053232,-399.32,0.00010709,2]
[348533247,1736607053241,-686.37,0.00010709,2]
[348533248,1736607053250,-500.0,0.00010709,2]
[348533249,1736607053260,-500.0,0.00010709,2]
[348533250,1736607053269,-208.35873488,0.00010709,2]
[348533251,1736607053279,-2192.32,0.00010709,2]
[348533252,1736607053289,-500.0,0.00010709,2]
[348533253,1736607053298,-609.9,0.00010709,2]
[348533254,1736607053307,-500.0,0.00010709,2]
[348533255,1736607053317,-500.0,0.00010709,2]
[348533256,1736607053327,-1575.89,0.00010709,2]
[348533257,1736607053336,-486.75342998,0.00010709,2]
[348533258,1736607053346,-521.24,0.00010709,2]
[348533259,1736607053356,-500.0,0.00010709,2]
[348533260,1736607053365,-500.0,0.00010709,2]
[348533261,1736607053374,-500.0,0.00010709,2]
[348533262,1736607053383,-500.0,0.00010709,2]
[348533263,1736607053393,-545.54,0.00010709,2]
[348533264,1736607053403,-2218.59,0.00010709,2]
[348533265,1736607053412,-500.0,0.00010709,2]
[348533266,1736607053422,-500.0,0.00010709,2]
[348533267,1736607053432,-500.0,0.00010709,2]
[348533268,1736607053442,-687.13,0.00010709,2]
[348533269,1736607053452,-683.83,0.0001071,2]
[348533270,1736607053462,-718.87,0.0001071,2]
[348533271,1736607053472,-1308.53,0.0001071,2]
[348533272,1736607053482,-622.72,0.0001071,2]
[348533273,1736607053492,-5365.55,0.0001071,2]
[348533274,1736607053502,-500.0,0.0001071,2]
[348533275,1736607053511,-830.23,0.0001071,2]
[348533276,1736607053521,-500.0,0.0001071,2]
[348533277,1736607053530,-1018.36,0.0001071,2]
[348533278,1736607053540,-511.63,0.0001071,2]
[348533279,1736607053549,-570.79,0.0001071,2]
[348533280,1736607053559,-500.0,0.0001071,2]
[348533281,1736607053568,-500.0,0.0001071,2]
[348533282,1736607053577,-775.71,0.0001071,2]
[348533283,1736607053587,-500.0,0.00010712,2]
[348533284,1736607053596,-766.78,0.00010716,2]
[348533285,1736607053605,-631.2,0.00010716,2]
[348533286,1736607053614,-561.23,0.00010716,2]
[348533287,1736607053624,-500.25,0.00010716,2]
[348533288,1736607053633,-627.41,0.00010716,2]
[348533289,1736607053644,-1276.19,0.00010716,2]
[348533290,1736607053654,-202.71905113,0.00010754,2]
[348533291,1736607053663,-600.84,0.00010821,2]
[348533292,1736607053672,-500.0,0.00010821,2]
[348533293,1736607053682,-811.94,0.00010821,2]
[348533294,1736607053691,-500.0,0.00010821,2]
[348533295,1736607053700,-500.0,0.00010821,2]
[348533296,1736607053710,-574.92,0.00010821,2]
[348533297,1736607053719,-1376.4,0.00010821,2]
[348533298,1736607053729,-724.24,0.00010821,2]
[348533299,1736607053738,-530.24,0.00010821,2]
[348533300,1736607053747,-675.649854,0.00010821,2]
[348533301,1736607053757,-657.362686,0.00010821,2]
[348533302,1736607053766,-1771.06,0.00010821,2]
[348533303,1736607053775,-500.0,0.00010821,2]
[348533304,1736607053948,-500.0,0.00010821,2]
[348533305,1736607053959,-500.0,0.00010821,2]
[348533306,1736607053968,-291.11808226,0.00010821,2]
[348533307,1736607053978,-500.0,0.00010821,2]
[348533308,1736607053987,-2941.63,0.00010821,2]
[348533309,1736607053997,-799.38,0.00010821,2]
[348533310,1736607054006,-732.34,0.00010821,2]
[348533311,1736607054015,-500.0,0.00010821,2]
[348533312,1736607054024,-500.0,0.00010821,2]
[348533313,1736607054033,-862.78,0.00010821,2]
[348533314,1736607054043,-964.57,0.00010821,2]
[348533315,1736607054052,-1087.4,0.00010821,2]
[348533316,1736607054062,-807.84,0.00010821,2]
[348533317,1736607054071,-1716.58,0.00010821,2]
[348533318,1736607054080,-961.27,0.00010821,2]
[348533319,1736607054090,-750.47,0.00010821,2]
[348533320,1736607054099,-1628.62,0.00010821,2]
[348533321,1736607054108,-849.75,0.00010821,2]
[348533322,1736607054117,-1834.98,0.00010821,2]
[348533323,1736607054127,-921.6,0.00010821,2]
[348533324,1736607054136,-500.0,0.00010821,2]
[348533325,1736607054145,-429.82131162,0.00010846,2]
[348533326,1736607054154,-500.0,0.00010853,2]
[348533327,1736607054163,-3200.0,0.000109,3]
[348533328,1736607054177,-500.0,0.00010958,2]
[348533329,1736607054186,-150.0,0.00010959,2]
[348533330,1736607054195,-246.245,0.00010971,2]
[348533331,1736607054205,-246.245,0.00010975,2]
[348533332,1736607054214,-246.245,0.00010976,2]
[348533333,1736607054224,-663.05098102,0.00010981,2]
[348533334,1736607054234,-827.11,0.00010981,2]
[348533335,1736607054243,-716.41,0.00010981,2]
[348533336,1736607054253,-500.0,0.00010982,2]
[348533337,1736607054262,-151.0,0.00010982,7]
[348533338,1736607054271,-151.0,0.00010982,7]
[348533339,1736607054280,-151.0,0.00010982,7]
[348533340,1736607054289,-151.0,0.00010982,7]
[348533341,1736607054299,-151.0,0.00010982,7]
[348533342,1736607054307,-151.0,0.00010982,7]
[348533343,1736607054316,-151.0,0.00010982,7]
[348533344,1736607054326,-151.0,0.00010982,7]
[348533345,1736607054336,-151.0,0.00010982,7]
[348533346,1736607054345,-151.0,0.00010982,7]
[348533347,1736607054354,-151.0,0.00010982,7]
[348533348,1736607054363,-151.0,0.00010982,7]
[348533349,1736607054373,-151.0,0.00010982,7]
[348533350,1736607054384,-151.0,0.00010982,7]
[348533351,1736607054393,-151.0,0.00010982,7]
[348533352,1736607054404,-151.0,0.00010982,7]
[348533353,1736607054415,-151.0,0.00010982,7]
[348533354,1736607054425,-151.0,0.00010982,7]
[348533355,1736607054434,-151.0,0.00010982,7]
[348533356,1736607054444,-151.0,0.00010982,7]
[348533357,1736607054453,-151.0,0.00010982,7]
[348533358,1736607054463,-151.0,0.00010982,7]
[348533359,1736607054473,-151.0,0.00010982,7]
[348533360,1736607054483,-151.0,0.00010982,7]
[348533361,1736607054492,-151.0,0.00010982,7]
[348533362,1736607054501,-151.0,0.00010982,7]
[348533363,1736607054510,-151.0,0.00010982,7]
[348533364,1736607054520,-151.0,0.00010982,7]
[348533365,1736607054529,-151.0,0.00010982,7]
[348533366,1736607054538,-151.0,0.00010982,7]
[348533367,1736607054547,-151.0,0.00010982,7]
[348533368,1736607054557,-151.0,0.00010982,7]
[348533369,1736607054566,-151.0,0.00010982,7]
[348533370,1736607054575,-151.0,0.00010982,7]
[348533371,1736607054584,-151.0,0.00010982,7]
[348533372,1736607054593,-151.0,0.00010982,7]
[348533373,1736607054603,-151.0,0.00010982,7]
[348533374,1736607054612,-151.0,0.00010982,7]
[348533375,1736607054621,-151.0,0.00010982,7]
[348533376,1736607054630,-151.0,0.00010982,7]
[348533377,1736607054639,-151.0,0.00010982,7]
[348533378,1736607054648,-151.0,0.00010982,7]
[348533379,1736607054658,-151.0,0.00010982,7]
[348533380,1736607054667,-151.0,0.00010982,7]
[348533381,1736607054677,-151.0,0.00010982,7]
[348533382,1736607054686,-151.0,0.00010982,7]
[348533383,1736607054695,-151.0,0.00010982,7]
[348533384,1736607054704,-151.0,0.00010982,7]
[348533385,1736607054714,-151.0,0.00010982,7]
[348533386,1736607054723,-151.0,0.00010982,7]
[348533387,1736607054733,-151.0,0.00010982,7]
[348533388,1736607054742,-151.0,0.00010982,7]
[348533389,1736607054751,-151.0,0.00010982,7]
[348533390,1736607054761,-151.0,0.00010982,7]
[348533391,1736607054770,-151.0,0.00010982,7]
[348533392,1736607054779,-151.0,0.00010982,7]
[348533393,1736607054788,-151.0,0.00010982,7]
[348533394,1736607054797,-151.0,0.00010982,7]
[348533395,1736607054807,-151.0,0.00010982,7]
[348533396,1736607054816,-151.0,0.00010982,7]
[348533397,1736607054826,-151.0,0.00010982,7]
[348533398,1736607054837,-151.0,0.00010982,7]